Body,Body Name,Date,TransNo,Amount � (Excl VAT),Supplier name,Description,Expense Area,Expense Type,Expense Code,
http://opendatacommunities.org/id/london-borough-council/sutton,London Borough of Sutton,11/06/2020,1295896,33.33 , AMZN DIGITAL,PSN GAME FOR IDM YOT YOUTH,Peoples Services Directorate,Personal Requisites,F106,
http://opendatacommunities.org/id/london-borough-council/sutton,London Borough of Sutton,27/05/2020,1295896,20.00 , THEPANICROOM.NET,ACTIVITY FAMILY PACK FOR CLIENT,Peoples Services Directorate,Personal Requisites,F106,
http://opendatacommunities.org/id/london-borough-council/sutton,London Borough of Sutton,22/06/2020,1295896,25.98 , EUROFLORIST AB,FLOWERS,Peoples Services Directorate,Miscellaneous Costs,G499,
http://opendatacommunities.org/id/london-borough-council/sutton,London Borough of Sutton,30/05/2020,1295896,69.68 , MAILCHIMP,MARKETING - ADVERTISING,Peoples Services Directorate,Advertising/Publicity (non Staff),F240,
http://opendatacommunities.org/id/london-borough-council/sutton,London Borough of Sutton,15/06/2020,1295896,245.26 , DDC EPSOM,PAINT FOR SUTTON CENTRE,Peoples Services Directorate,General Maintenance,D500,
http://opendatacommunities.org/id/london-borough-council/sutton,London Borough of Sutton,26/05/2020,1295896,216.00 , WWW.INSTANTPRINT.C,INSTANTPRINT FLOOR STICKERS LN BUDGET COVID,Peoples Services Directorate,Printing - General,F215,
http://opendatacommunities.org/id/london-borough-council/sutton,London Borough of Sutton,02/06/2020,1295896,22.84 , NBNI  200608150828887,BRITISH COMPUTER SOCIETY CAREERS IN DATA ANALYSIS BOOK,Peoples Services Directorate,Education Equipment,F009,
http://opendatacommunities.org/id/london-borough-council/sutton,London Borough of Sutton,02/06/2020,1295896,8.19 , ASDA STORES,COOKERY INGREDIENTS,Peoples Services Directorate,Education Equipment,F009,
http://opendatacommunities.org/id/london-borough-council/sutton,London Borough of Sutton,23/06/2020,1295896,18.69 , ASDA STORES,COOKERY INGREDIENTS,Peoples Services Directorate,Education Equipment,F009,
http://opendatacommunities.org/id/london-borough-council/sutton,London Borough of Sutton,16/06/2020,1295896,15.96 , ASDA STORES,COOKERY INGREDIENTS,Peoples Services Directorate,Education Equipment,F009,
http://opendatacommunities.org/id/london-borough-council/sutton,London Borough of Sutton,10/06/2020,1295896,14.22 , ASDA STORES,COOKERY INGREDIENTS,Peoples Services Directorate,Education Equipment,F009,
http://opendatacommunities.org/id/london-borough-council/sutton,London Borough of Sutton,18/06/2020,1295896,185.00 , HS PRINTING AND COMPUT,DR PHONE,Peoples Services Directorate,Personal Requisites,F106,
http://opendatacommunities.org/id/london-borough-council/sutton,London Borough of Sutton,05/06/2020,1295896,56.92 , ASDA SUPERSTORE,KP GROCERIES,Peoples Services Directorate,Personal Requisites,F106,
http://opendatacommunities.org/id/london-borough-council/sutton,London Borough of Sutton,01/06/2020,1295896,7.50 , PEPPERS SANDWICH BAR,RA ACTIVITY,Peoples Services Directorate,Personal Requisites,F106,
http://opendatacommunities.org/id/london-borough-council/sutton,London Borough of Sutton,08/06/2020,1295896,199.17 , SUTTON APPLIANCES,SET UP OF NEW HOME - FRIDGE,Peoples Services Directorate,Personal Requisites,F106,
http://opendatacommunities.org/id/london-borough-council/sutton,London Borough of Sutton,23/06/2020,1295896,39.00 , HS PRINTING AND COMPUT,DR PRINTING,Peoples Services Directorate,Personal Requisites,F106,
http://opendatacommunities.org/id/london-borough-council/sutton,London Borough of Sutton,22/06/2020,1295896,22.02 , ICELAND,DR GROCERIES HOSPITAL,Peoples Services Directorate,Personal Requisites,F106,
http://opendatacommunities.org/id/london-borough-council/sutton,London Borough of Sutton,19/06/2020,1295896,25.00 , GIFFGAFF,DR PHONE CREDIT MARSDEN,Peoples Services Directorate,Personal Requisites,F106,
http://opendatacommunities.org/id/london-borough-council/sutton,London Borough of Sutton,19/06/2020,1295896,11.84 , TESCO STORES 5511,DR GROCERIES HOSPITAL,Peoples Services Directorate,Personal Requisites,F106,
http://opendatacommunities.org/id/london-borough-council/sutton,London Borough of Sutton,21/06/2020,1295896,40.00 , UK DEED POLL SERVICE L,NAME CHANGE  FOR CLIENT,Peoples Services Directorate,Client Care/Assistance,H301,
http://opendatacommunities.org/id/london-borough-council/sutton,London Borough of Sutton,18/06/2020,1295896,80.30 , WWW.COURIEREXPERT.CO.U,TRANSPORT OF GOODS FOR CLIENT,Peoples Services Directorate,Client Care/Assistance,H301,
http://opendatacommunities.org/id/london-borough-council/sutton,London Borough of Sutton,17/06/2020,1295896,169.12 , ARGOS LTD,NEW CLIENT HOME SET UP - TV,Peoples Services Directorate,Client Care/Assistance,H301,
http://opendatacommunities.org/id/london-borough-council/sutton,London Borough of Sutton,04/06/2020,1295896,60.00 , WWW.COURIEREXPERT.CO.U,TRANSPORT OF GOOD FOR CLIENT,Peoples Services Directorate,Client Care/Assistance,H301,
http://opendatacommunities.org/id/london-borough-council/sutton,London Borough of Sutton,10/06/2020,1295896,131.25 , TVLICENSING.CO.UK,TV LICENSE FOR WHOLE YEAR NEW HOME FOR CLIENT,Peoples Services Directorate,Set Up Costs - Children Leaving Care,H336,
http://opendatacommunities.org/id/london-borough-council/sutton,London Borough of Sutton,07/06/2020,1295896,57.72 , B & Q 1191,KP SETTING UP,Peoples Services Directorate,Set Up Costs - Children Leaving Care,H336,
http://opendatacommunities.org/id/london-borough-council/sutton,London Borough of Sutton,04/06/2020,1295896,89.99 , AMZNMKTPLACE,KP SET UP,Peoples Services Directorate,Set Up Costs - Children Leaving Care,H336,
http://opendatacommunities.org/id/london-borough-council/sutton,London Borough of Sutton,03/06/2020,1295896,150.00 , AMAZON.CO.UK OJ5032SZ5,KP SETTING UP,Peoples Services Directorate,Set Up Costs - Children Leaving Care,H336,
http://opendatacommunities.org/id/london-borough-council/sutton,London Borough of Sutton,03/06/2020,1295896,38.98 , WAYFAIR #3108598774,RH SETTING UP,Peoples Services Directorate,Set Up Costs - Children Leaving Care,H336,
http://opendatacommunities.org/id/london-borough-council/sutton,London Borough of Sutton,03/06/2020,1295896,303.29 , DUNELM,RH SETTING UP,Peoples Services Directorate,Set Up Costs - Children Leaving Care,H336,
http://opendatacommunities.org/id/london-borough-council/sutton,London Borough of Sutton,03/06/2020,1295896,66.67 , ARGOS LTD,RH SETTING UP,Peoples Services Directorate,Set Up Costs - Children Leaving Care,H336,
http://opendatacommunities.org/id/london-borough-council/sutton,London Borough of Sutton,03/06/2020,1295896,162.97 , WAYFAIR #3107594804,RH SETTING UP,Peoples Services Directorate,Set Up Costs - Children Leaving Care,H336,
http://opendatacommunities.org/id/london-borough-council/sutton,London Borough of Sutton,01/06/2020,1295896,212.49 , WAYFAIR #3041090884,BUCKINGHAM WAY FURNITURE,Peoples Services Directorate,Set Up Costs - Children Leaving Care,H336,
http://opendatacommunities.org/id/london-borough-council/sutton,London Borough of Sutton,01/06/2020,1295896,(212.49), WAYFAIR #3041090884,WAYFAIR REFUND,Peoples Services Directorate,Set Up Costs - Children Leaving Care,H336,
http://opendatacommunities.org/id/london-borough-council/sutton,London Borough of Sutton,27/05/2020,1295896,200.00 , WWW.VOUCHEREXPRESS.CO.,KP SETTING UP,Peoples Services Directorate,Set Up Costs - Children Leaving Care,H336,
http://opendatacommunities.org/id/london-borough-council/sutton,London Borough of Sutton,24/06/2020,1295896,8.00 , SAINSBURYS 2006,DR SETTING UP,Peoples Services Directorate,Set Up Costs - Children Leaving Care,H336,
http://opendatacommunities.org/id/london-borough-council/sutton,London Borough of Sutton,25/06/2020,1295896,222.47 , ARGOS LTD,"SET UP OF NEW HOME - TV, PLATES, WALL MOUNT AND FILLING CABINET",Peoples Services Directorate,Personal Requisites,F106,
http://opendatacommunities.org/id/london-borough-council/sutton,London Borough of Sutton,18/06/2020,1295896,24.83 , AMZNMKTPLACE,GOOD FOR CLIENT,Peoples Services Directorate,Client Care/Assistance,H301,
http://opendatacommunities.org/id/london-borough-council/sutton,London Borough of Sutton,08/06/2020,1295896,35.00 , LB CROYDON,BIRTH CERTIFICATES FOR CLIENT,Peoples Services Directorate,Personal Requisites,F106,
http://opendatacommunities.org/id/london-borough-council/sutton,London Borough of Sutton,04/06/2020,1295896,333.32 , AMAZON.CO.UK PY8CB89Q5,GOODS NEEDED FOR CLIENT,Peoples Services Directorate,Personal Requisites,F106,
http://opendatacommunities.org/id/london-borough-council/sutton,London Borough of Sutton,01/06/2020,1295896,39.90 , MINICABIT,39.90 H212 0311 MINI CAB,Peoples Services Directorate,C.C.A Travel & Subsistance,H212,
http://opendatacommunities.org/id/london-borough-council/sutton,London Borough of Sutton,18/06/2020,1295896,291.67 , HALFORDS ON LINE,BIKE FOR CLIENT,Peoples Services Directorate,Client Care/Assistance,H301,
http://opendatacommunities.org/id/london-borough-council/sutton,London Borough of Sutton,01/06/2020,1295896,87.50 , LBS REGISTRARS,X3 BIRTH CERTIFICATE FOR CLIENT AND FIRST CLASS DELIVERY,Peoples Services Directorate,Personal Requisites,F106,
http://opendatacommunities.org/id/london-borough-council/sutton,London Borough of Sutton,08/06/2020,1295896,33.00 , LBS REGISTRARS,BIRTH CERTIFICATES FOR CLIENT,Peoples Services Directorate,Personal Requisites,F106,
http://opendatacommunities.org/id/london-borough-council/sutton,London Borough of Sutton,05/06/2020,1295896,(26.00), LB CROYDON,REFUND,Peoples Services Directorate,Personal Requisites,F106,
http://opendatacommunities.org/id/london-borough-council/sutton,London Borough of Sutton,05/06/2020,1295896,72.00 , WWW.COURIEREXPERT.CO.U,60 - COURIER EXPERT - H301 0312 9999.PDF,Peoples Services Directorate,Client Care/Assistance,H301,
http://opendatacommunities.org/id/london-borough-council/sutton,London Borough of Sutton,08/06/2020,1295896,9.16 , AMZNMKTPLACE,GOODS FOR CLIENT HOME SET UP,Peoples Services Directorate,Personal Requisites,F106,
http://opendatacommunities.org/id/london-borough-council/sutton,London Borough of Sutton,07/06/2020,1295896,13.32 , AMZNMKTPLACE,GOODS NEEDED FOR CLIENT HOME SET UP,Peoples Services Directorate,Personal Requisites,F106,
http://opendatacommunities.org/id/london-borough-council/sutton,London Borough of Sutton,09/06/2020,1295896,171.66 , WF  WAYFAIR 3109416484,NEW HOME SET UP - CUPBOARD,Peoples Services Directorate,Personal Requisites,F106,
http://opendatacommunities.org/id/london-borough-council/sutton,London Borough of Sutton,09/06/2020,1295896,8.32 , AMZNMKTPLACE AMAZON.CO,SET UP HOME,Peoples Services Directorate,Personal Requisites,F106,
http://opendatacommunities.org/id/london-borough-council/sutton,London Borough of Sutton,01/06/2020,1295896,124.99 , ARGOS LTD,TV NEW HOME SET UP FOR CLIENT IN RED LOCALITY,Peoples Services Directorate,Personal Requisites,F106,
http://opendatacommunities.org/id/london-borough-council/sutton,London Borough of Sutton,08/06/2020,1295896,9.97 , WWW.GROUPON.CO.UK,FITTED BED SHEETS FOR HOM SET UP,Peoples Services Directorate,Personal Requisites,F106,
http://opendatacommunities.org/id/london-borough-council/sutton,London Borough of Sutton,08/06/2020,1295896,49.99 , WWW.GROUPON.CO.UK,SET UP OF CLIENT HOME,Peoples Services Directorate,Personal Requisites,F106,
http://opendatacommunities.org/id/london-borough-council/sutton,London Borough of Sutton,04/06/2020,1295896,91.66 , WF  WAYFAIR 2304082464,HOME SET UP FOR CLIENT,Peoples Services Directorate,Personal Requisites,F106,
http://opendatacommunities.org/id/london-borough-council/sutton,London Borough of Sutton,17/06/2020,1295896,102.46 , ARGOS LTD,NEW CLIENT HOME SET UP MATTRESS,Peoples Services Directorate,Client Care/Assistance,H301,
http://opendatacommunities.org/id/london-borough-council/sutton,London Borough of Sutton,24/06/2020,1295896,49.96 , ZOOM.GBP,ZOOM SUBSCEPTION,Peoples Services Directorate,Subscriptions - General,F450,
http://opendatacommunities.org/id/london-borough-council/sutton,London Borough of Sutton,24/06/2020,1295896,9.99 , ZOOM.GBP,ZOOM SUBSCEPTION ADD ON,Peoples Services Directorate,Subscriptions - General,F450,
http://opendatacommunities.org/id/london-borough-council/sutton,London Borough of Sutton,23/06/2020,1295896,24.12 , FACEBK VJBXGVNAL2,SPLIT - FACEBOOK COST (26.62%),Peoples Services Directorate,Advertising/Publicity (non Staff),F240,
http://opendatacommunities.org/id/london-borough-council/sutton,London Borough of Sutton,08/06/2020,1295896,28.47 , AMZNMKTPLACE,PROTECTION FOR STAFF AT SUTTON FAMILY CENTRE,Peoples Services Directorate,Domestic Supplies,D801,
http://opendatacommunities.org/id/london-borough-council/sutton,London Borough of Sutton,08/06/2020,1295896,24.79 , AMZNMKTPLACE,PROTECTION FOR STAFF AT SUTTON FAMILY CENTRE,Peoples Services Directorate,Domestic Supplies,D801,
http://opendatacommunities.org/id/london-borough-council/sutton,London Borough of Sutton,07/06/2020,1295896,104.95 , AMZNMKTPLACE,PROTECTION FOR STAFF AT SUTTON FAMILY CENTRE,Peoples Services Directorate,Domestic Supplies,D801,
http://opendatacommunities.org/id/london-borough-council/sutton,London Borough of Sutton,08/06/2020,1295896,9.16 , AMZNMKTPLACE,SPLIT - JAM PAPER PREMIUM UTENSILS PARTY PACK - PLASTIC SPOONS - BABY BLUE - 48 DISPOSABLE SPOONS/PACK (58.33%),Peoples Services Directorate,Personal Requisites,F106,
http://opendatacommunities.org/id/london-borough-council/sutton,London Borough of Sutton,08/06/2020,1295896,6.54 , AMZNMKTPLACE,SPLIT - 100 X 12OZ/15CM PLASTIC BOWLS - WHITE 100 PACK - GREAT FOR PARTIES (41.67%),Peoples Services Directorate,Personal Requisites,F106,
http://opendatacommunities.org/id/london-borough-council/sutton,London Borough of Sutton,04/06/2020,1295896,99.50 , AMZNMKTPLACE,GOODS NEEDED FOR FAMILY CENTRE,Peoples Services Directorate,Personal Requisites,F106,
http://opendatacommunities.org/id/london-borough-council/sutton,London Borough of Sutton,21/06/2020,1295896,20.00 , OYSTER AUTO TOPUP,OYSTER TOP UP,Peoples Services Directorate,Travelling and Subsistence Allowances,A530,
http://opendatacommunities.org/id/london-borough-council/sutton,London Borough of Sutton,20/06/2020,1295896,20.00 , OYSTER BUS AUTOLOAD,OYSTER TOP UP,Peoples Services Directorate,Travelling and Subsistence Allowances,A530,
http://opendatacommunities.org/id/london-borough-council/sutton,London Borough of Sutton,17/06/2020,1295896,20.00 , OYSTER BUS AUTOLOAD,OYSTER TOP UP,Peoples Services Directorate,Travelling and Subsistence Allowances,A530,
http://opendatacommunities.org/id/london-borough-council/sutton,London Borough of Sutton,11/06/2020,1295896,20.00 , OYSTER AUTO TOPUP,OYSTER TOP UP,Peoples Services Directorate,Travelling and Subsistence Allowances,A530,
http://opendatacommunities.org/id/london-borough-council/sutton,London Borough of Sutton,25/06/2020,1295896,20.00 , OYSTER BUS AUTOLOAD,OYSTER TOP UP,Peoples Services Directorate,Travelling and Subsistence Allowances,A530,
http://opendatacommunities.org/id/london-borough-council/sutton,London Borough of Sutton,02/06/2020,1295896,105.42 , THE GRANARY,RESEARCH IN PRACTICE INDIVIDUAL SUBSCRIPTION CONTRACT,Peoples Services Directorate,Personal Requisites,F106,
http://opendatacommunities.org/id/london-borough-council/sutton,London Borough of Sutton,26/05/2020,1295896,(499.97), ARGOS LTD,REFUND FOR UNSUCCESSFUL ARGOS PAYMENT,Peoples Services Directorate,Personal Requisites,F106,
http://opendatacommunities.org/id/london-borough-council/sutton,London Borough of Sutton,25/06/2020,1295896,201.00 , SIMARC,GROUND RENT,Peoples Services Directorate,Personal Requisites,F106,
http://opendatacommunities.org/id/london-borough-council/sutton,London Borough of Sutton,27/05/2020,1295896,522.50 , SUTTON APPLIANCES,"FRIDGE FREEZER, COOKER AND WASHING MACHINE FOR CLIENT HOME SET UP",Peoples Services Directorate,Personal Requisites,F106,
http://opendatacommunities.org/id/london-borough-council/sutton,London Borough of Sutton,27/05/2020,1295896,350.83 , ARGOS LTD,HOME ESSENTIALS FOR CLIENT HOME SET UP,Peoples Services Directorate,Personal Requisites,F106,
http://opendatacommunities.org/id/london-borough-council/sutton,London Borough of Sutton,26/05/2020,1295896,179.00 , WWW.THEBEAUTYACADEMY.O,NAILS BEAUTY TREAINING PACKAGE AND NAILS KIT FOR CLIENT,Peoples Services Directorate,Personal Requisites,F106,
http://opendatacommunities.org/id/london-borough-council/sutton,London Borough of Sutton,01/06/2020,1295896,74.17 , SUTTON APPLIANCES,FIXING OF APPLIANCE FOR CLIENT HOME,Peoples Services Directorate,Personal Requisites,F106,
http://opendatacommunities.org/id/london-borough-council/sutton,London Borough of Sutton,05/06/2020,1295896,8.75 , MINICABIT,TRANSPORT FOR CLIENT,Peoples Services Directorate,C.C.A Travel & Subsistance,H212,
http://opendatacommunities.org/id/london-borough-council/sutton,London Borough of Sutton,05/06/2020,1295896,8.52 , MINICABIT,TRANSPORT FOR CLIENT,Peoples Services Directorate,C.C.A Travel & Subsistance,H212,
http://opendatacommunities.org/id/london-borough-council/sutton,London Borough of Sutton,23/06/2020,1295896,(795.98), LASTMINUTE: FLIGHT LHR,795.98 H301 0384 9999 REFUND FOR FLIGHTS FROM LHR BOOKED WITH LAST MINUTE.COM,Peoples Services Directorate,Client Care/Assistance,H301,
http://opendatacommunities.org/id/london-borough-council/sutton,London Borough of Sutton,04/06/2020,1295896,6.67 , AMAZON.CO.UK S682Y1NJ5,"SPLIT - BIC 4 COLOURS ASSORTED BALLPOINT PENS MEDIUM POINT (1.0 MM), LOT OF 6 PENS (100%)",Peoples Services Directorate,LAC - Education,F269,
http://opendatacommunities.org/id/london-borough-council/sutton,London Borough of Sutton,04/06/2020,1295896,7.31 , AMAZON.CO.UK MF2SY6MI5,SPLIT - NEW FUNCTIONAL SKILLS MATHS: EDEXCEL ENTRY LEVEL 3 - STUDY & TEST PRACTICE (FOR 2019 & BEYOND) (CGP FUNCTIONAL SKILLS) (59.38%),Peoples Services Directorate,LAC - Education,F269,
http://opendatacommunities.org/id/london-borough-council/sutton,London Borough of Sutton,04/06/2020,1295896,4.63 , AMAZON.CO.UK MF2SY6MI5,SPLIT - ENGLISH FOR EVERYONE COURSE BOOK LEVEL 1 BEGINNER: A COMPLETE SELF-STUDY PROGRAMME (40.62%),Peoples Services Directorate,LAC - Education,F269,
http://opendatacommunities.org/id/london-borough-council/sutton,London Borough of Sutton,04/06/2020,1295896,10.82 , AMAZON.CO.UK 557GS6FF5,SPLIT - GALT TOYS SCIENCE LAB KIT (100%),Peoples Services Directorate,LAC - Education,F269,
http://opendatacommunities.org/id/london-borough-council/sutton,London Borough of Sutton,03/06/2020,1295896,4.99 , AMZNMKTPLACE,SPLIT - EASYNOTE A4 ARTISTS SKETCH PAD (100%),Peoples Services Directorate,LAC - Education,F269,
http://opendatacommunities.org/id/london-borough-council/sutton,London Borough of Sutton,03/06/2020,1295896,7.49 , AMAZON.CO.UK YT28N24Y5,"SPLIT - RAVENSBURGER UK 10408 RAVENSBURGER DISNEY PIXAR TOY STORY 4, XXL 100PC JIGSAW PUZZLE, MULTICOLOURED (72.26%)",Peoples Services Directorate,LAC - Education,F269,
http://opendatacommunities.org/id/london-borough-council/sutton,London Borough of Sutton,03/06/2020,1295896,3.74 , AMAZON.CO.UK YT28N24Y5,BALANCING ENTRY AMOUNT (27.74%),Peoples Services Directorate,LAC - Education,F269,
http://opendatacommunities.org/id/london-borough-council/sutton,London Borough of Sutton,03/06/2020,1295896,16.66 , AMZNMKTPLACE,"SPLIT - RAVENSBURGER UK 19744 RAVENSBURGER DISNEY COLLECTOR'S EDITION JUNGLE BOOK 1000 JIGSAW PUZZLE FOR ADULTS-EVERY UNIQUE, SOFTCLICK TECHNOLOGY MEANS PIECE (100%)",Peoples Services Directorate,LAC - Education,F269,
http://opendatacommunities.org/id/london-borough-council/sutton,London Borough of Sutton,03/06/2020,1295896,7.31 , AMAZON.CO.UK 9Z7Q47G85,SPLIT - NEW FUNCTIONAL SKILLS MATHS: EDEXCEL ENTRY LEVEL 3 - STUDY & TEST PRACTICE (FOR 2019 & BEYOND) (CGP FUNCTIONAL SKILLS) (59.62%),Peoples Services Directorate,LAC - Education,F269,
http://opendatacommunities.org/id/london-borough-council/sutton,London Borough of Sutton,03/06/2020,1295896,4.95 , AMAZON.CO.UK 9Z7Q47G85,SPLIT - NEW FUNCTIONAL SKILLS MATHS ENTRY LEVEL 3 - 10 MINUTE TESTS (FOR 2020 & BEYOND) (CGP FUNCTIONAL SKILLS) (40.38%),Peoples Services Directorate,LAC - Education,F269,
http://opendatacommunities.org/id/london-borough-council/sutton,London Borough of Sutton,01/06/2020,1295896,6.90 , AMAZON.CO.UK A46UO3SS5,SPLIT - SPANISH FOR BEGINNERS: 1 (INTERNET LINKED WITH AUDIO CD) (95.06%),Peoples Services Directorate,LAC - Education,F269,
http://opendatacommunities.org/id/london-borough-council/sutton,London Borough of Sutton,01/06/2020,1295896,0.35 , AMAZON.CO.UK A46UO3SS5,BALANCING ENTRY AMOUNT (4.94%),Peoples Services Directorate,LAC - Education,F269,
http://opendatacommunities.org/id/london-borough-council/sutton,London Borough of Sutton,29/05/2020,1295896,18.64 , AMZNMKTPLACE,"SPLIT - AMAZONBASICS WHITEBOARD DRYWIPE MAGNETIC WITH PEN TRAY AND ALUMINIUM TRIM, 90 CM X 60 CM (WXH) (100%)",Peoples Services Directorate,LAC - Education,F269,
http://opendatacommunities.org/id/london-borough-council/sutton,London Borough of Sutton,28/05/2020,1295896,2.20 , AMZNMKTPLACE,SPLIT - Q-CONNECT KF02643 ASSORTED 25MM MAGNET (PACK OF 10) (46.89%),Peoples Services Directorate,LAC - Education,F269,
http://opendatacommunities.org/id/london-borough-council/sutton,London Borough of Sutton,16/06/2020,1295896,5.94 , AMAZON.CO.UK F09BE7195,SPLIT - MUMMY FAIRY AND ME: FAIRY-IN-WAITING (38.65%),Peoples Services Directorate,LAC - Education,F269,
http://opendatacommunities.org/id/london-borough-council/sutton,London Borough of Sutton,16/06/2020,1295896,5.94 , AMAZON.CO.UK F09BE7195,SPLIT - MUMMY FAIRY AND ME: MERMAID MAGIC (38.65%),Peoples Services Directorate,LAC - Education,F269,
http://opendatacommunities.org/id/london-borough-council/sutton,London Borough of Sutton,16/06/2020,1295896,3.49 , AMAZON.CO.UK F09BE7195,SPLIT - MUMMY FAIRY AND ME (22.7%),Peoples Services Directorate,LAC - Education,F269,
http://opendatacommunities.org/id/london-borough-council/sutton,London Borough of Sutton,14/06/2020,1295896,3.59 , AMAZON.CO.UK 9I1RQ28A5,SPLIT - SPANISH MADE EASY AGES 7-11 KEY STAGE 2 (MADE EASY WORKBOOKS) (88.42%),Peoples Services Directorate,LAC - Education,F269,
http://opendatacommunities.org/id/london-borough-council/sutton,London Borough of Sutton,14/06/2020,1295896,0.47 , AMAZON.CO.UK 9I1RQ28A5,BALANCING ENTRY AMOUNT (11.58%),Peoples Services Directorate,LAC - Education,F269,
http://opendatacommunities.org/id/london-borough-council/sutton,London Borough of Sutton,13/06/2020,1295896,6.08 , AMAZON.CO.UK GJ0Y17WP5,"SPLIT - THE EASY AND RELAXING MEMORY ACTIVITY BOOK FOR ADULTS: INCLUDES RELAXING MEMORY ACTIVITIES, EASY PUZZLES, BRAIN GAMES AND MORE (100%)",Peoples Services Directorate,LAC - Education,F269,
http://opendatacommunities.org/id/london-borough-council/sutton,London Borough of Sutton,13/06/2020,1295896,4.68 , AMAZON.CO.UK 5Y51Y9US5,SPLIT - HANDWRITING TODAY: BK. 2 (HANDWRITING TODAY) (100%),Peoples Services Directorate,LAC - Education,F269,
http://opendatacommunities.org/id/london-borough-council/sutton,London Borough of Sutton,12/06/2020,1295896,35.00 , 3P LEARNING,3P LEARNING PACKAGE: MATHLETICS,Peoples Services Directorate,LAC - Education,F269,
http://opendatacommunities.org/id/london-borough-council/sutton,London Borough of Sutton,12/06/2020,1295896,11.66 , AMAZON.CO.UK 8B86M0105,"SPLIT - RAVENSBURGER DISNEY COLLECTOR'S EDITION SLEEPING BEAUTY 1000 PIECE JIGSAW PUZZLE FOR ADULTS - EVERY PIECE IS UNIQUE, SOFTCLICK TECHNOLOGY MEANS PIECES FIT TOGETHER PERFECTLY (100%)",Peoples Services Directorate,LAC - Education,F269,
http://opendatacommunities.org/id/london-borough-council/sutton,London Borough of Sutton,11/06/2020,1295896,4.70 , AMAZON.CO.UK EK44X8175,SPLIT - HANDWRITING TODAY: BK. 1 (HANDWRITING TODAY) (100%),Peoples Services Directorate,LAC - Education,F269,
http://opendatacommunities.org/id/london-borough-council/sutton,London Borough of Sutton,11/06/2020,1295896,4.95 , AMAZON.CO.UK JN9UU55U5,SPLIT - NEW FUNCTIONAL SKILLS MATHS LEVEL 1 - 10 MINUTE TESTS (FOR 2020 & BEYOND) (CGP FUNCTIONAL SKILLS) (40.38%),Peoples Services Directorate,LAC - Education,F269,
http://opendatacommunities.org/id/london-borough-council/sutton,London Borough of Sutton,11/06/2020,1295896,7.31 , AMAZON.CO.UK JN9UU55U5,SPLIT - NEW FUNCTIONAL SKILLS MATHS LEVEL 1 - STUDY & TEST PRACTICE (FOR 2019 & BEYOND) (CGP FUNCTIONAL SKILLS) (59.62%),Peoples Services Directorate,LAC - Education,F269,
http://opendatacommunities.org/id/london-borough-council/sutton,London Borough of Sutton,11/06/2020,1295896,11.66 , AMZNMKTPLACE AMAZON.CO,"SPLIT - RAVENSBURGER UK 19746 RAVENSBURGER DISNEY COLLECTOR'S EDITION BEAUTY & THE BEAST 1000 JIGSAW PUZZLE FOR ADULTS-EVERY UNIQUE, SOFTCLICK TECHNOLOGY MEAN (78.08%)",Peoples Services Directorate,LAC - Education,F269,
http://opendatacommunities.org/id/london-borough-council/sutton,London Borough of Sutton,11/06/2020,1295896,4.16 , AMZNMKTPLACE AMAZON.CO,BALANCING ENTRY AMOUNT (21.92%),Peoples Services Directorate,LAC - Education,F269,
http://opendatacommunities.org/id/london-borough-council/sutton,London Borough of Sutton,22/06/2020,1295896,5.25 , AMAZON.CO.UK 5S2AF3BE5,SPLIT - SILVINE EXERCISE BOOK RULED AND MARGIN 80 PAGES A4 RED REF EX107 [PACK OF 10] (14.03%),Peoples Services Directorate,LAC - Education,F269,
http://opendatacommunities.org/id/london-borough-council/sutton,London Borough of Sutton,22/06/2020,1295896,11.38 , AMAZON.CO.UK 5S2AF3BE5,SPLIT - KS3 SPANISH COMPLETE REVISION & PRACTICE WITH ONLINE DOWNLOADABLE CODE  (CGP KS3 LANGUAGES) (27.38%),Peoples Services Directorate,LAC - Education,F269,
http://opendatacommunities.org/id/london-borough-council/sutton,London Borough of Sutton,22/06/2020,1295896,6.55 , AMAZON.CO.UK V21HV8IE5,SPLIT - NOUGHTS & CROSSES (NOUGHTS AND CROSSES) (62.09%),Peoples Services Directorate,LAC - Education,F269,
http://opendatacommunities.org/id/london-borough-council/sutton,London Borough of Sutton,22/06/2020,1295896,4.00 , AMAZON.CO.UK V21HV8IE5,SPLIT - WONDER (37.91%),Peoples Services Directorate,LAC - Education,F269,
http://opendatacommunities.org/id/london-borough-council/sutton,London Borough of Sutton,19/06/2020,1295896,5.82 , AMZNMKTPLACE,"SPLIT - SILVINE A4 HEAVYWEIGHT 90GSM PROFESSIONAL TRACING PAD 50 SHEETS, A4TPR (60.89%)",Peoples Services Directorate,LAC - Education,F269,
http://opendatacommunities.org/id/london-borough-council/sutton,London Borough of Sutton,19/06/2020,1295896,3.74 , AMZNMKTPLACE,"SPLIT - RANKIE MICRO USB CABLE, NYLON BRAIDED EXTREMELY DURABLE, DATA AND CHARGING, 1.8 M, GREY (39.11%)",Peoples Services Directorate,LAC - Education,F269,
http://opendatacommunities.org/id/london-borough-council/sutton,London Borough of Sutton,18/06/2020,1295896,74.99 , AMZNMKTPLACE,SPLIT - CANON PIXMA TS 3350 MULTIFUNCTIONAL PRINTER (100%),Peoples Services Directorate,LAC - Education,F269,
http://opendatacommunities.org/id/london-borough-council/sutton,London Borough of Sutton,18/06/2020,1295896,3.75 , AMAZON.CO.UK 8D1II7O35,SPLIT - CANON A4 80GSM PREMIUM LABEL COPIER/PRINTER PAPER - WHITE (100%),Peoples Services Directorate,LAC - Education,F269,
http://opendatacommunities.org/id/london-borough-council/sutton,London Borough of Sutton,17/06/2020,1295896,26.00 , AMAZON.CO.UK OZ6MW5D25,SPLIT - OXFORD READING TREE: LEVEL 3: FLOPPY'S PHONICS FICTION: PACK OF 6 (100%),Peoples Services Directorate,LAC - Education,F269,
http://opendatacommunities.org/id/london-borough-council/sutton,London Borough of Sutton,17/06/2020,1295896,7.51 , AMAZON.CO.UK P92I81ZS5,"SPLIT - NEW 9-1 GCSE COMBINED SCIENCE AQA REVISION QUESTION CARDS: BIOLOGY, CHEMISTRY & PHYSICS (COLLINS GCSE 9-1 REVISION CARDS) (51.08%)",Peoples Services Directorate,LAC - Education,F269,
http://opendatacommunities.org/id/london-borough-council/sutton,London Borough of Sutton,17/06/2020,1295896,7.99 , AMAZON.CO.UK P92I81ZS5,SPLIT - GCSE MATHS GRADE 9-1 AQA FOUNDATION COMPLETE PRACTICE AND REVISION GUIDE WITH FREE ONLINE Q&A FLASHCARD DOWNLOAD (COLLINS GCSE 9-1 REVISION) (48.92%),Peoples Services Directorate,LAC - Education,F269,
http://opendatacommunities.org/id/london-borough-council/sutton,London Borough of Sutton,17/06/2020,1295896,17.18 , AMAZON.CO.UK JQ5RB6KG5,SPLIT - CANON PG-545XL BLACK INK CARTRIDGE (55.74%),Peoples Services Directorate,LAC - Education,F269,
http://opendatacommunities.org/id/london-borough-council/sutton,London Borough of Sutton,17/06/2020,1295896,13.64 , AMAZON.CO.UK JQ5RB6KG5,SPLIT - CANON CL546XL INK CARTRIDGE - MULTI-COLOUR (44.26%),Peoples Services Directorate,LAC - Education,F269,
http://opendatacommunities.org/id/london-borough-council/sutton,London Borough of Sutton,17/06/2020,1295896,3.27 , AMZNMKTPLACE,SPLIT - OXFORD HELIX MATHS SET WITH STORAGE TIN (100%),Peoples Services Directorate,LAC - Education,F269,
http://opendatacommunities.org/id/london-borough-council/sutton,London Borough of Sutton,09/06/2020,1295896,3.55 , AMAZON.CO.UK F48PW8D25,"SPLIT - HANDWRITING PRACTICE BOOK 2: KS2 ENGLISH, AGES 7-11 (100%)",Peoples Services Directorate,LAC - Education,F269,
http://opendatacommunities.org/id/london-borough-council/sutton,London Borough of Sutton,09/06/2020,1295896,(26.00), AMZ AMAZON.CO.UK,SPLIT - OXFORD READING TREE: LEVEL 3: FLOPPY'S PHONICS FICTION: PACK OF 6 (100%),Peoples Services Directorate,LAC - Education,F269,
http://opendatacommunities.org/id/london-borough-council/sutton,London Borough of Sutton,07/06/2020,1295896,3.29 , AMAZON.CO.UK B298954U5,SPLIT - HELIX OXFORD COLOURING PENCILS IN METAL TIN (PACK OF 12) (44.94%),Peoples Services Directorate,LAC - Education,F269,
http://opendatacommunities.org/id/london-borough-council/sutton,London Borough of Sutton,07/06/2020,1295896,1.87 , AMAZON.CO.UK B298954U5,SPLIT - STAEDTLER NORIS 120-S BK5D PENCIL ASSORTED GRADES (BLISTER PACK OF 5) (25.6%),Peoples Services Directorate,LAC - Education,F269,
http://opendatacommunities.org/id/london-borough-council/sutton,London Borough of Sutton,07/06/2020,1295896,2.16 , AMAZON.CO.UK B298954U5,SPLIT - MAPED CONNECT DUO PASTEL PENCIL SHARPENER AND ERASER (ASSORTED COLOURS) (29.46%),Peoples Services Directorate,LAC - Education,F269,
http://opendatacommunities.org/id/london-borough-council/sutton,London Borough of Sutton,05/06/2020,1295896,25.99 , AMAZON.CO.UK FZ09R7S95,"SPLIT - VIDEO INTERACTION GUIDANCE: A RELATIONSHIP-BASED INTERVENTION TO PROMOTE ATTUNEMENT, EMPATHY AND WELLBEING (100%)",Peoples Services Directorate,LAC - Education,F269,
http://opendatacommunities.org/id/london-borough-council/sutton,London Borough of Sutton,03/06/2020,1295896,6.55 , AMZNMKTPLACE,SPLIT - ASHES TO ASHES (VOLUME 3) (13.17%),Peoples Services Directorate,LAC - Education,F269,
http://opendatacommunities.org/id/london-borough-council/sutton,London Borough of Sutton,03/06/2020,1295896,6.55 , AMZNMKTPLACE,SPLIT - FIRE WITH FIRE (VOLUME 2) (13.17%),Peoples Services Directorate,LAC - Education,F269,
http://opendatacommunities.org/id/london-borough-council/sutton,London Borough of Sutton,03/06/2020,1295896,6.37 , AMZNMKTPLACE,SPLIT - HACKNEY CHILD (12.8%),Peoples Services Directorate,LAC - Education,F269,
http://opendatacommunities.org/id/london-borough-council/sutton,London Borough of Sutton,03/06/2020,1295896,22.29 , AMZNMKTPLACE,SPLIT - THE COMPLETE SUMMER I TURNED PRETTY TRILOGY (44.8%),Peoples Services Directorate,LAC - Education,F269,
http://opendatacommunities.org/id/london-borough-council/sutton,London Borough of Sutton,03/06/2020,1295896,7.99 , AMZNMKTPLACE,SPLIT - BURN FOR BURN (VOLUME 1) (16.06%),Peoples Services Directorate,LAC - Education,F269,
http://opendatacommunities.org/id/london-borough-council/sutton,London Borough of Sutton,02/06/2020,1295896,6.39 , AMZNMKTPLACE,"SPLIT - PUTWO METALLIC MARKER PENS, 10 COLOURS MARKER PENS, SCRAPBOOK PENS FOR BLACK PAPER, SCRAPBOOK ACCESSORIES, METALLIC PAINT PENS, PENS FOR PHOTO ALBUM, SCRAPBOOKING PENS (100%)",Peoples Services Directorate,LAC - Education,F269,
http://opendatacommunities.org/id/london-borough-council/sutton,London Borough of Sutton,04/06/2020,1295896,8.96 , AMAZON.CO.UK M276H81W5,SPLIT - CREATE THIS BOOK (42.01%),Peoples Services Directorate,LAC - Education,F269,
http://opendatacommunities.org/id/london-borough-council/sutton,London Borough of Sutton,04/06/2020,1295896,12.37 , AMAZON.CO.UK M276H81W5,SPLIT - HOW TO DRAW COOL STUFF: A DRAWING GUIDE FOR TEACHERS AND STUDENTS (57.99%),Peoples Services Directorate,LAC - Education,F269,
http://opendatacommunities.org/id/london-borough-council/sutton,London Borough of Sutton,24/06/2020,1295896,9.45 , AMAZON.CO.UK 6N9BV00V5,SPLIT - LITTLE WOMEN (100%),Peoples Services Directorate,LAC - Education,F269,
http://opendatacommunities.org/id/london-borough-council/sutton,London Borough of Sutton,23/06/2020,1295896,84.90 , TWINKL LIMITED,TWINKL,Peoples Services Directorate,LAC - Education,F269,
http://opendatacommunities.org/id/london-borough-council/sutton,London Borough of Sutton,23/06/2020,1295896,21.59 , AMAZON.CO.UK DF33L8TN5,"SPLIT - CANON (8288B004) INK CARTRIDGE, CL-546XL MULTICOLOR (51.15%)",Peoples Services Directorate,LAC - Education,F269,
http://opendatacommunities.org/id/london-borough-council/sutton,London Borough of Sutton,23/06/2020,1295896,13.58 , AMAZON.CO.UK DF33L8TN5,SPLIT - CANON PG-545XL BLACK INK CARTRIDGE (48.85%),Peoples Services Directorate,LAC - Education,F269,
http://opendatacommunities.org/id/london-borough-council/sutton,London Borough of Sutton,22/06/2020,1295896,4.16 , AMAZON.CO.UK JH5YT1F85,SPLIT - HERLITZ A6 RULED RECORD CARD - ASSORTED COLOURS (200 PIECES) (100%),Peoples Services Directorate,LAC - Education,F269,
http://opendatacommunities.org/id/london-borough-council/sutton,London Borough of Sutton,22/06/2020,1295896,8.32 , AMAZON.CO.UK 5S2AF3BE5,SPLIT - MAPOMINOES EUROPE - THE ULTIMATE GEOGRAPHY GAME - FUN AND EDUCATIONAL TRAVEL CARD GAME FOR KIDS TEENAGERS AND ADULTS. LIKE DOMINOES WITH MAPS. (22.25%),Peoples Services Directorate,LAC - Education,F269,
http://opendatacommunities.org/id/london-borough-council/sutton,London Borough of Sutton,22/06/2020,1295896,10.32 , AMAZON.CO.UK 5S2AF3BE5,SPLIT - NEW KS3 GEOGRAPHY COMPLETE REVISION & PRACTICE (WITH ONLINE EDITION) (CGP KS3 HUMANITIES) (22.99%),Peoples Services Directorate,LAC - Education,F269,
http://opendatacommunities.org/id/london-borough-council/sutton,London Borough of Sutton,22/06/2020,1295896,4.99 , AMAZON.CO.UK 5S2AF3BE5,SPLIT - HOUSE OF CARD & PAPER  A3 300 GSM CARD - WHITE (PACK OF 25 SHEETS) (13.34%),Peoples Services Directorate,LAC - Education,F269,
http://opendatacommunities.org/id/london-borough-council/sutton,London Borough of Sutton,28/05/2020,1295896,2.99 , AMZNMKTPLACE,SPLIT - TELLING THE TIME AGES 5-7: PREPARE FOR SCHOOL WITH EASY HOME LEARNING (COLLINS EASY LEARNING KS1) (53.11%),Peoples Services Directorate,LAC - Education,F269,
http://opendatacommunities.org/id/london-borough-council/sutton,London Borough of Sutton,26/05/2020,1295896,7.99 , AMZNMKTPLACE,SPLIT - DHCHAPU PUPIL CLOCK - TELL THE TIME - 12 HOUR&24 HOUR CLOCK STUDENT LEARNING CLOCK (100%),Peoples Services Directorate,LAC - Education,F269,
http://opendatacommunities.org/id/london-borough-council/sutton,London Borough of Sutton,24/06/2020,1295896,874.92 , AMZNMKTPLACE AMAZON.CO,A-FRAMES X 10 FOR SOCIAL DISTANCING SIGNAGE,"Environment, Housing & Regeneration Directorate",Other Equipment - Purchase,F015,
http://opendatacommunities.org/id/london-borough-council/sutton,London Borough of Sutton,14/06/2020,1295896,77.60 , AMZNMKTPLACE,STAMP PADS AND RECEIVED STAMP,"Environment, Housing & Regeneration Directorate",Stationery,F220,
http://opendatacommunities.org/id/london-borough-council/sutton,London Borough of Sutton,03/06/2020,1295896,8.32 , SPOTIFY P0FFEF35FB,MUSIC FOR WEDDINGS,Resources Directorate,Subscriptions - General,F450,
http://opendatacommunities.org/id/london-borough-council/sutton,London Borough of Sutton,19/06/2020,1295896,4.17 , WILKO RETAIL LIMITED,ANTIBAC WIPES FOR PENS AND DESKS,Resources Directorate,Miscellaneous Expenses,F620,
http://opendatacommunities.org/id/london-borough-council/sutton,London Borough of Sutton,01/06/2020,1295896,8.75 , WILKO RETAIL LIMITED,ANTI BAC WIPES FOR CLEANING PENS/DESKS,Resources Directorate,Miscellaneous Expenses,F620,
http://opendatacommunities.org/id/london-borough-council/sutton,London Borough of Sutton,28/05/2020,1295896,290.83 , CURRYS ONLINE,WIRELESS TRADITIONAL HI-FI SYSTEM FOR CLIENT,"Environment, Housing & Regeneration Directorate",Personal Requisites,F106,
http://opendatacommunities.org/id/london-borough-council/sutton,London Borough of Sutton,29/05/2020,1295896,193.31 , ARGOS LTD,ESSENTIAL ITEMS HOMELESS HOUSEHOLD CV19,"Environment, Housing & Regeneration Directorate",Other Services,F340,
http://opendatacommunities.org/id/london-borough-council/sutton,London Borough of Sutton,29/05/2020,1295896,119.12 , ARGOS LTD,ESSENTIAL ITEMS HOMELESS HOUSEHOLD,"Environment, Housing & Regeneration Directorate",Other Services,F340,
http://opendatacommunities.org/id/london-borough-council/sutton,London Borough of Sutton,29/05/2020,1295896,488.17 , ARGOS LTD,ESSENTIAL ITEMS HOMELESS HOUSEHOLD,"Environment, Housing & Regeneration Directorate",Other Services,F340,
http://opendatacommunities.org/id/london-borough-council/sutton,London Borough of Sutton,29/05/2020,1295896,37.49 , ARGOS LTD,ESSENTIAL ITEMS HOMELESS HOUSEHOLD,"Environment, Housing & Regeneration Directorate",Other Services,F340,
http://opendatacommunities.org/id/london-borough-council/sutton,London Borough of Sutton,15/06/2020,1295896,6.04 , SITEGROUND HOSTING,WEB HOSTING,Resources Directorate,Fees - Computer Software,F384,
http://opendatacommunities.org/id/london-borough-council/sutton,London Borough of Sutton,14/06/2020,1295896,219.47 , MAILCHIMP    MONTHLY,WEB HOSTING,Resources Directorate,Fees - Computer Software,F384,
http://opendatacommunities.org/id/london-borough-council/sutton,London Borough of Sutton,20/06/2020,1295896,19.98 , AMZNMKTPLACE AMAZON.CO,PURCHASE OF TRS CABLE AND HEADPHONE ADAPTOR FOR MATTHEW STICKLEY,Resources Directorate,Materials - General,F100,
http://opendatacommunities.org/id/london-borough-council/sutton,London Borough of Sutton,08/06/2020,1295896,2.07 , AMAZON.CO.UK DS4BD07S5,SPLIT - SPEEDLINK SL-6201-SBK MOUSE PAD BASIC - BLACK (100%),Resources Directorate,Personal Requisites,F106,
http://opendatacommunities.org/id/london-borough-council/sutton,London Borough of Sutton,07/06/2020,1295896,37.98 , AMZNMKTPLACE AMAZON.CO,EQUIPMENT,Resources Directorate,Personal Requisites,F106,
http://opendatacommunities.org/id/london-borough-council/sutton,London Borough of Sutton,03/06/2020,1295896,"3,350.00 ", WM MORRISONS HO CREDIT,MORRISONS FOOD VOUCHERS,Resources Directorate,Miscellaneous Expenses,F620,
http://opendatacommunities.org/id/london-borough-council/sutton,London Borough of Sutton,06/06/2020,1295896,12.46 , WIX.COM,PAYMENT TO WIX.COM FOR RENEWAL OF JOBSINSUTTON.COM DOMAIN ADDRESS,Resources Directorate,Staff Advertising,A500,
http://opendatacommunities.org/id/london-borough-council/sutton,London Borough of Sutton,04/06/2020,1295896,658.85 , SITEGROUND HOSTING,HOSTING OF NOT ALONE IN SUTTON WEBSITE,Resources Directorate,Advertising/Publicity (non Staff),F240,
http://opendatacommunities.org/id/london-borough-council/sutton,London Borough of Sutton,08/06/2020,1295896,6.66 , AMZNMKTPLACE AMAZON.CO,VISITORS BOOK FOR MAYOR'S PARLOUR,Resources Directorate,Materials - General,F100,
http://opendatacommunities.org/id/london-borough-council/sutton,London Borough of Sutton,08/06/2020,1295896,25.20 , WWW.DIRECT-FUNDRAISING,MAYOR'S CHARITY BUCKET LABELS,Resources Directorate,Materials - General,F100,
http://opendatacommunities.org/id/london-borough-council/sutton,London Borough of Sutton,25/06/2020,1295896,59.40 , FRITH FRAMES LTD,FRAMING OF MAYORAL PORTRAIT 2020-2021,Resources Directorate,Materials - General,F100,
http://opendatacommunities.org/id/london-borough-council/sutton,London Borough of Sutton,25/06/2020,1295896,280.00 , HS PRINTING AND COMPUT,MAYOR'S CHARITY BANNERS X 2,Resources Directorate,Materials - General,F100,
http://opendatacommunities.org/id/london-borough-council/sutton,London Borough of Sutton,04/06/2020,1295896,70.00 , EB  ONLINE TRAINING CH,CHAIRING SKILLS - VIRTUAL MEETINGS - CLLR. SHORT,Resources Directorate,Members Expenses - Travel and Subsistence,F401,
http://opendatacommunities.org/id/london-borough-council/sutton,London Borough of Sutton,01/06/2020,1295896,140.00 , EB  ONLINE TRAINING CH,CHAIRING SKILLS VIRTUAL MEETINGS - CLLR. JAMES AND GORDON,Resources Directorate,Members Expenses - Travel and Subsistence,F401,
http://opendatacommunities.org/id/london-borough-council/sutton,London Borough of Sutton,22/06/2020,1295896,190.00 , WESTMINSTER FORUM PROJ,BOOKING OF WESTMINSTER HEALTH FORUM POLICY CONFERENCE FOR CLLR,Resources Directorate,Members Expenses - Other,F402,
http://opendatacommunities.org/id/london-borough-council/sutton,London Borough of Sutton,28/05/2020,1295896,140.00 , EB  ONLINE TRAINING CH,CHAIRING SKILLS VITUAL MEETINGS - FOR COUNCILLORS,Resources Directorate,Members Expenses - Other,F402,
http://opendatacommunities.org/id/london-borough-council/sutton,London Borough of Sutton,23/06/2020,1295896,80.42 , LINKEDIN 5676556834 LN,LINKEDIN ADVERTISING,Resources Directorate,Corporate Publicity,F356,
http://opendatacommunities.org/id/london-borough-council/sutton,London Borough of Sutton,23/06/2020,1295896,66.50 , FACEBK VJBXGVNAL2,SPLIT - FACEBOOK COST (73.38%),Resources Directorate,Corporate Publicity,F356,
http://opendatacommunities.org/id/london-borough-council/sutton,London Borough of Sutton,13/06/2020,1295896,201.31 , 123 REG LTD,ACCOUNT FEE,Resources Directorate,Corporate Publicity,F356,
http://opendatacommunities.org/id/london-borough-council/sutton,London Borough of Sutton,25/06/2020,1295896,13.00 , POUNDLAND LTD 1211,COMMUNITY HUB VOLUNTEERS/STAFF SUBSISTENCE,Resources Directorate,Travelling and Subsistence Allowances,A530,
http://opendatacommunities.org/id/london-borough-council/sutton,London Borough of Sutton,19/06/2020,1295896,95.50 , DOMINO'S PIZZA,COMMUNITY HUB VOLUNTEERS/STAFF SUBSISTENCE,Resources Directorate,Travelling and Subsistence Allowances,A530,
http://opendatacommunities.org/id/london-borough-council/sutton,London Borough of Sutton,12/06/2020,1295896,60.77 , DOMINO'S PIZZA,COMMUNITY HUB VOLUNTEERS/STAFF SUBSISTENCE,Resources Directorate,Travelling and Subsistence Allowances,A530,
http://opendatacommunities.org/id/london-borough-council/sutton,London Borough of Sutton,12/06/2020,1295896,37.30 , CO-OP GROUP 070754,COMMUNITY HUB VOLUNTEER/STAFF SUBSIDENCE,Resources Directorate,Travelling and Subsistence Allowances,A530,
http://opendatacommunities.org/id/london-borough-council/sutton,London Borough of Sutton,05/06/2020,1295896,87.92 , DOMINO'S PIZZA,COMMUNITY HUB VOLUNTEERS/STAFF SUBSISTENCE,Resources Directorate,Travelling and Subsistence Allowances,A530,
http://opendatacommunities.org/id/london-borough-council/sutton,London Borough of Sutton,29/05/2020,1295896,90.28 , DOMINO'S PIZZA,COMMUNITY HUB VOLUNTEERS/STAFF SUBSISTENCE,Resources Directorate,Travelling and Subsistence Allowances,A530,
http://opendatacommunities.org/id/london-borough-council/sutton,London Borough of Sutton,05/06/2020,1295896,"1,664.65 ", SAINSBURYS 2331,COMMUNITY HUB FOOD (SAINSBURYS) 050620,Resources Directorate,Assistance to Voluntary Organisations,F471,
http://opendatacommunities.org/id/london-borough-council/sutton,London Borough of Sutton,05/06/2020,1295896,382.90 , SAINSBURYS 2331,COMMUNITY HUB FOOD (SAINSBURYS) 050620,Resources Directorate,Assistance to Voluntary Organisations,F471,
http://opendatacommunities.org/id/london-borough-council/sutton,London Borough of Sutton,04/06/2020,1295896,"1,021.20 ", TESCO STORE 3235,COMMUNITY HUB FOOD (TESCO) 040620,Resources Directorate,Assistance to Voluntary Organisations,F471,
http://opendatacommunities.org/id/london-borough-council/sutton,London Borough of Sutton,26/05/2020,1295896,"2,125.66 ", TESCO STORE 3235,COMMUNITY FOOD HUB (TESCO) 260520,Resources Directorate,Assistance to Voluntary Organisations,F471,
http://opendatacommunities.org/id/london-borough-council/sutton,London Borough of Sutton,05/06/2020,1295896,"1,290.00 ", WAITROSE 661,FOOD HUB,Resources Directorate,Assistance to Voluntary Organisations,F471,
http://opendatacommunities.org/id/london-borough-council/sutton,London Borough of Sutton,19/06/2020,1295896,351.00 , TESCO STORE 3235,FOOD PURCHASE FOR COMMUNITY HUB,Resources Directorate,Assistance to Voluntary Organisations,F471,
http://opendatacommunities.org/id/london-borough-council/sutton,London Borough of Sutton,04/06/2020,1295896,85.65 , WAITROSE 202,FOOD PURCHASE FOR COMMUNITY HIB,Resources Directorate,Assistance to Voluntary Organisations,F471,
http://opendatacommunities.org/id/london-borough-council/sutton,London Borough of Sutton,01/06/2020,1295896,"1,824.78 ", TESCO STORE 3235,FOOD PURCHASE FOR COMMUNITY HUB,Resources Directorate,Assistance to Voluntary Organisations,F471,
http://opendatacommunities.org/id/london-borough-council/sutton,London Borough of Sutton,29/05/2020,1295896,589.36 , WAITROSE 202,FOOD PURCHASE FOR COMMUNITY HUB,Resources Directorate,Assistance to Voluntary Organisations,F471,
http://opendatacommunities.org/id/london-borough-council/sutton,London Borough of Sutton,28/05/2020,1295896,"1,270.40 ", TESCO STORE 3235,FOOD PURCHASE FOR COMMUNITY HBUB,Resources Directorate,Assistance to Voluntary Organisations,F471,
http://opendatacommunities.org/id/london-borough-council/sutton,London Borough of Sutton,29/05/2020,1295896,224.00 , SAINSBURYS 2331,COSTS INCURRED PURCHASING GROCERIES FOR THE LBS COMMUNITY HUB.,Resources Directorate,Assistance to Voluntary Organisations,F471,
http://opendatacommunities.org/id/london-borough-council/sutton,London Borough of Sutton,29/05/2020,1295896,"1,010.85 ", SAINSBURYS 2331,COSTS INCURRED PURCHASING GROCERIES FOR THE LBS COMMUNITY HUB.,Resources Directorate,Assistance to Voluntary Organisations,F471,
http://opendatacommunities.org/id/london-borough-council/sutton,London Borough of Sutton,22/06/2020,1295896,"7,787.61 ", BRAKE BROS LTD,FOOD FOR COMMUNITY HUB,Resources Directorate,Assistance to Voluntary Organisations,F471,
http://opendatacommunities.org/id/london-borough-council/sutton,London Borough of Sutton,16/06/2020,1295896,"11,555.22 ", BRAKE BROS LTD,FOOD FOR COMMUNITY HUB,Resources Directorate,Assistance to Voluntary Organisations,F471,
http://opendatacommunities.org/id/london-borough-council/sutton,London Borough of Sutton,05/06/2020,1295896,172.32 , ASDA STORES,ASDA FOOD HUB PAYMENT,Resources Directorate,Assistance to Voluntary Organisations,F471,
http://opendatacommunities.org/id/london-borough-council/sutton,London Borough of Sutton,22/06/2020,1295896,190.15 , ARGOS LTD,CL&G,Resources Directorate,Grants,F473,
http://opendatacommunities.org/id/london-borough-council/sutton,London Borough of Sutton,08/06/2020,1295896,149.99 , ARGOS LTD,CL&G,Resources Directorate,Grants,F473,
http://opendatacommunities.org/id/london-borough-council/sutton,London Borough of Sutton,03/06/2020,1295896,179.99 , ARGOS LTD,CL&G,Resources Directorate,Grants,F473,
http://opendatacommunities.org/id/london-borough-council/sutton,London Borough of Sutton,01/06/2020,1295896,79.00 , ARGOS LTD,CRISIS LOAN & GRANT,Resources Directorate,Grants,F473,
http://opendatacommunities.org/id/london-borough-council/sutton,London Borough of Sutton,01/06/2020,1295896,179.99 , ARGOS LTD,CRISIS LOAN & GRANT,Resources Directorate,Grants,F473,
http://opendatacommunities.org/id/london-borough-council/sutton,London Borough of Sutton,01/06/2020,1295896,129.99 , ARGOS LTD,CRISIS LOAN & GRANT,Resources Directorate,Grants,F473,
http://opendatacommunities.org/id/london-borough-council/sutton,London Borough of Sutton,01/06/2020,1295896,103.94 , ARGOS LTD,CRISIS LOAN & GRANT,Resources Directorate,Grants,F473,
http://opendatacommunities.org/id/london-borough-council/sutton,London Borough of Sutton,01/06/2020,1295896,245.95 , ARGOS LTD,CRISIS LOAN & GRANT,Resources Directorate,Grants,F473,
http://opendatacommunities.org/id/london-borough-council/sutton,London Borough of Sutton,28/05/2020,1295896,165.95 , ARGOS LTD,CRISIS LOAN & GRANT,Resources Directorate,Grants,F473,
http://opendatacommunities.org/id/london-borough-council/sutton,London Borough of Sutton,28/05/2020,1295896,483.98 , ARGOS LTD,CRISIS LOAN & GRANT,Resources Directorate,Grants,F473,
http://opendatacommunities.org/id/london-borough-council/sutton,London Borough of Sutton,27/05/2020,1295896,156.94 , ARGOS LTD,CRISIS LOAN & GRANT,Resources Directorate,Grants,F473,
http://opendatacommunities.org/id/london-borough-council/sutton,London Borough of Sutton,26/05/2020,1295896,365.95 , ARGOS LTD,CRISIS LOAN & GRANT,Resources Directorate,Grants,F473,
http://opendatacommunities.org/id/london-borough-council/sutton,London Borough of Sutton,03/06/2020,1295896,"4,750.00 ", CS MORRISONS GIFT CARD,PURCHASE OF MORRISONS GIFT VOUCHERS FOR USE IN CRISIS LOAN/ GRANT AWARDS,Resources Directorate,Grants,F473,
http://opendatacommunities.org/id/london-borough-council/sutton,London Borough of Sutton,27/05/2020,1295896,135.49 , WWW.CPAG.ORG.UK,"HOUSING BENEFIT AND COUNCIL TAX REDUCTION LEGISLATION, WITH SUPPLEMENT 2019/20 32ND EDITION",Resources Directorate,Books of Reference/Statute,F222,
http://opendatacommunities.org/id/london-borough-council/sutton,London Borough of Sutton,18/06/2020,1295896,33.00 , LBS REGISTRARS,BIRTH CERTIFICATE FOR CLIENT,Peoples Services Directorate,Personal Requisites,F106,
http://opendatacommunities.org/id/london-borough-council/sutton,London Borough of Sutton,18/06/2020,1295896,33.00 , LBS REGISTRARS,BIRTH CERTIFICATE FOR CLIENT,Peoples Services Directorate,Personal Requisites,F106,
http://opendatacommunities.org/id/london-borough-council/sutton,London Borough of Sutton,08/06/2020,1295896,79.17 , RAFF ELECTRICAL,ADDITIONAL COST OF INSTALLING WASHING MACHINE,Peoples Services Directorate,Client Care/Assistance,H301,
http://opendatacommunities.org/id/london-borough-council/sutton,London Borough of Sutton,28/05/2020,1295896,29.17 , STORAGEMART UK A-2EBFF,STORAGE SPACE FOR JUNE,Peoples Services Directorate,Offsite Storage,F231,
http://opendatacommunities.org/id/london-borough-council/sutton,London Borough of Sutton,19/06/2020,1295896,50.00 , WILKO RETAIL LIMITED,COVID PPE,Peoples Services Directorate,Special,D535,
http://opendatacommunities.org/id/london-borough-council/sutton,London Borough of Sutton,16/06/2020,1295896,9.00 , POUNDLAND LTD 1211,COVID PPE,Peoples Services Directorate,Special,D535,
http://opendatacommunities.org/id/london-borough-council/sutton,London Borough of Sutton,12/06/2020,1295896,24.70 , WILKO RETAIL LIMITED,COVID PPE,Peoples Services Directorate,Special,D535,
http://opendatacommunities.org/id/london-borough-council/sutton,London Borough of Sutton,12/06/2020,1295896,30.00 , WILKO RETAIL LIMITED,COVID PPE,Peoples Services Directorate,Special,D535,
http://opendatacommunities.org/id/london-borough-council/sutton,London Borough of Sutton,05/06/2020,1295896,30.50 , WILKO RETAIL LIMITED,30.50 6452 6619 WILKO START COVID.PDF,Peoples Services Directorate,Special,D535,
http://opendatacommunities.org/id/london-borough-council/sutton,London Borough of Sutton,29/05/2020,1295896,30.45 , WILKO RETAIL LIMITED,30.45 WILKO.JPG  PPE PACKS,Peoples Services Directorate,Special,D535,
http://opendatacommunities.org/id/london-borough-council/sutton,London Borough of Sutton,09/06/2020,1295896,489.46 , RUTH LEE LTD,REDACTED - PERSONAL DATA,Peoples Services Directorate,Rent - General,D650,
http://opendatacommunities.org/id/london-borough-council/sutton,London Borough of Sutton,25/06/2020,1295896,25.00 , POUNDLAND LTD 1211,RUBBISH BAGS FOR PPE PACKS FOR START,Peoples Services Directorate,Personal Requisites,F106,
http://opendatacommunities.org/id/london-borough-council/sutton,London Borough of Sutton,25/06/2020,1295896,20.83 , POUNDLAND LTD 1211,RUBBISH BAGS FOR PPE PACKS FOR START,Peoples Services Directorate,Personal Requisites,F106,
http://opendatacommunities.org/id/london-borough-council/sutton,London Borough of Sutton,16/06/2020,1295896,22.92 , AMZNMKTPLACE,AUTO SQUEEZE PUMP,Peoples Services Directorate,Personal Requisites,F106,
http://opendatacommunities.org/id/london-borough-council/sutton,London Borough of Sutton,25/06/2020,1295896,55.10 , PAYPAL  YAMM OR FP,FORM PUBLISHER ANNUAL SUBSCRIPTION,Peoples Services Directorate,Subscriptions - General,F450,
http://opendatacommunities.org/id/london-borough-council/sutton,London Borough of Sutton,24/06/2020,1295896,11.00 , LBSUTTON MOTO,DEATH CERTIFICATE,Peoples Services Directorate,Burials/Cremations,H303,
http://opendatacommunities.org/id/london-borough-council/sutton,London Borough of Sutton,22/06/2020,1295896,11.00 , LBSUTTON MOTO,DEATH CERT,Peoples Services Directorate,Burials/Cremations,H303,
http://opendatacommunities.org/id/london-borough-council/sutton,London Borough of Sutton,10/06/2020,1295896,45.00 , ALLIUM,FUNERAL WREATH FOR MOIRA WORSNOP,Peoples Services Directorate,Burials/Cremations,H303,
